bitfinex-derivatives/quotes_ETHF0:USTF0_20250130
["timestamp","ask_amount","ask_price","bid_price","bid_amount"]
[1738248932011,0.00457184,3281.9,3281.6,6.34972336]
[1738248932213,0.00457184,3281.9,3281.6,3.2078]
[1738248933210,0.00457184,3281.9,3281.1,3.2078]
[1738248933611,3.2078,3281.6,3281.2,0.60961]
[1738248933914,0.00457184,3281.9,3280.8,1.5884]
[1738248933915,3.2078,3281.5,3280.8,1.5884]
[1738248935012,3.2078,3281.5,3281.3,0.6096]
[1738248935305,3.2078,3281.5,3280.8,1.5884]
[1738248935505,3.81737,3281.5,3280.9,0.60967]
[1738248935812,3.2078,3281.5,3280.8,3.2078]
[1738248936013,0.7443,3281.4,3280.8,3.2078]
[1738248936212,0.60967,3281.0,3280.4,3.21237184]
[1738248936411,0.6097,3280.8,3280.4,0.00457184]
[1738248936611,3.2078,3280.6,3280.4,0.00457184]
[1738248937008,3.2078,3280.6,3280.4,0.61433184]
[1738248937208,3.2078,3280.6,3280.4,0.00457184]
[1738248938218,3.2078,3281.0,3280.4,3.21237184]
[1738248939613,3.2078,3281.0,3280.7,0.6097]
[1738248939814,3.2078,3281.0,3280.4,3.21237184]
[1738248940010,0.60972,3280.7,3280.4,3.21237184]
[1738248940216,3.2078,3281.0,3280.4,3.21237184]
[1738248940718,0.60969,3280.9,3280.4,3.82213184]
[1738248940922,3.2078,3281.0,3280.4,3.21237184]
[1738248941121,0.60975,3280.5,3280.4,0.00457184]
[1738248941712,3.81753,3280.6,3280.4,0.00457184]
[1738248941909,3.2078,3280.6,3280.4,0.00457184]
[1738248942420,0.60975,3280.5,3280.4,0.00457184]
[1738248942621,1.5188,3280.5,3279.5,3.2078]
[1738248942913,1.5188,3280.5,3279.1,3.2078]
[1738248942914,3.2078,3279.6,3279.1,3.2078]
[1738248943117,3.2078,3280.0,3279.1,3.2078]
[1738248943318,1.216,3280.2,3279.5,3.2078]
[1738248943521,1.5188,3280.5,3280.1,0.60981]
[1738248943719,0.00457184,3280.2,3279.6,0.7584]
[1738248944020,0.00457184,3280.2,3279.9,0.60986]
[1738248944220,0.00457184,3280.2,3279.6,0.7584]
[1738248944425,3.21237184,3280.2,3279.7,0.60989]
[1738248945020,3.21237184,3280.2,3279.6,0.7584]
[1738248945315,3.21237184,3280.2,3279.7,0.6099]
[1738248945521,3.21237184,3280.2,3279.9,0.60985]
[1738248945720,3.21237184,3280.2,3279.7,0.6099]
[1738248945921,3.21237184,3280.2,3279.9,0.60986]
[1738248946110,0.00457184,3280.2,3279.6,0.7584]
[1738248946315,0.00457184,3280.2,3280.1,0.60982]
[1738248946723,0.00457184,3280.2,3279.9,3.2078]
[1738248946724,0.00457184,3280.2,3280.0,0.60983]
[1738248947022,0.00457184,3280.2,3279.7,0.7914]
[1738248947223,3.82219184,3280.2,3279.6,0.60991]
[1738248947723,0.7691,3280.1,3279.5,3.21237184]
[1738248948112,0.00457184,3280.2,3279.5,3.21237184]
[1738248948514,3.21237184,3280.2,3279.6,0.6099]
[1738248948722,0.00457184,3280.2,3279.5,3.21237184]
[1738248948928,0.00457184,3280.2,3280.1,3.81762]
[1738248950321,1.5596,3281.4,3280.3,1.52447]
[1738248950521,0.6096,3281.3,3280.8,3.81749]
[1738248950725,1.5596,3281.4,3280.8,3.2078]
[1738248950929,0.60961,3281.3,3280.8,3.2078]
[1738248951220,3.2078,3281.7,3281.2,3.2078]
[1738248951424,0.00457184,3281.4,3281.2,3.81742]
[1738248951727,0.00457184,3281.4,3281.2,3.2078]
[1738248952623,0.00457184,3281.4,3281.1,0.00457184]
[1738248953122,0.00457184,3281.4,3281.3,0.6096]
[1738248955321,3.81709,3283.0,3282.6,0.60935]
[1738248955527,3.81709,3283.0,3281.3,8.14008718]
[1738248955528,3.2078,3283.0,3282.7,0.60933]
[1738248955825,3.2078,3283.0,3282.8,0.60932]
[1738248956029,3.2078,3283.0,3282.5,6.34788718]
[1738248956418,0.00457184,3283.1,3282.5,7.87132718]
[1738248956628,0.00457184,3283.1,3283.0,0.60928]
[1738248956819,3.2078,3283.9,3283.8,0.60914]
[1738248957026,3.2078,3284.3,3283.5,6.34788718]
[1738248957224,0.60906,3284.2,3283.6,0.60916]
[1738248957532,0.60906,3284.2,3283.1,7.12378718]
[1738248957533,3.2078,3283.9,3283.1,7.12378718]
[1738248957721,3.2078,3284.3,3283.1,7.12378718]
[1738248957922,3.2078,3284.3,3283.6,3.2078]
[1738248958123,0.00128678,3284.0,3283.7,0.60915]
[1738248958324,0.00128678,3284.0,3283.6,3.81697]
[1738248958529,0.00128678,3284.0,3283.6,3.2078]
[1738248958727,3.2078,3283.8,3283.2,3.81703]
[1738248959033,3.2078,3283.9,3283.2,3.2078]
[1738248959423,3.2078,3283.9,3283.1,0.7759]
[1738248959624,3.2078,3283.5,3283.1,0.7759]
[1738248959824,3.2078,3283.5,3283.1,1.38516]
[1738248960024,3.2078,3283.5,3283.1,0.7759]
[1738248960235,3.2078,3283.5,3282.8,3.2078]
[1738248960526,3.2078,3283.5,3283.0,0.60928]
[1738248960730,3.2078,3283.5,3282.8,3.2078]
[1738248960922,3.81701,3283.5,3282.8,3.81711]
[1738248961139,3.2078,3283.5,3282.7,3.74941718]
[1738248961431,3.20908678,3284.0,3282.8,3.2078]
[1738248961726,3.2078,3283.6,3282.8,3.2078]
[1738248961932,3.2078,3283.2,3282.5,0.00457184]
[1738248962231,3.81712,3282.8,3282.5,0.00457184]
[1738248962423,3.2078,3282.8,3282.5,0.00457184]
[1738248963125,0.7939,3283.0,3282.5,0.00457184]
[1738248963330,0.7825,3282.9,3282.5,0.00457184]
[1738248963526,3.9903,3282.9,3282.5,0.00457184]
[1738248963731,0.60936,3282.6,3282.5,0.00457184]
[1738248964032,0.60943,3282.3,3281.6,3.81734]
[1738248964225,0.60943,3282.2,3281.6,3.81734]
[1738248964435,3.2078,3281.9,3281.2,3.9723]
[1738248964634,3.2078,3281.5,3281.0,0.7477]
[1738248964830,3.2078,3281.1,3280.4,3.2078]
[1738248965134,0.6097,3280.8,3280.4,0.00457184]
[1738248965332,3.2078,3280.6,3280.4,0.00457184]
[1738248965522,0.60975,3280.5,3280.4,0.00457184]
[1738248966436,0.60985,3280.0,3279.4,4.72]
[1738248966736,4.4188,3280.6,3279.9,0.60986]
[1738248966927,3.2078,3280.6,3279.8,3.81767]
[1738248967227,3.2078,3280.6,3279.8,3.2078]
[1738248967628,3.2078,3280.6,3279.9,0.00457184]
[1738248968230,0.60984,3280.1,3279.9,0.00457184]
[1738248968433,0.60984,3280.0,3279.9,0.00457184]
[1738248969828,0.60997,3279.4,3278.6,3.8179]
[1738248970032,0.60997,3279.4,3278.6,3.2078]
[1738248970033,3.2078,3279.4,3278.6,3.2078]
[1738248970233,3.2078,3279.4,3278.7,0.61007]
[1738248970435,3.2078,3279.4,3278.6,3.2078]
[1738248970635,0.60998,3279.3,3278.6,3.2078]
[1738248970830,3.2078,3278.9,3278.2,0.7478]
[1738248971030,4.37956583,3279.7,3278.2,0.7478]
[1738248971031,3.21237184,3279.3,3278.7,0.61008]
[1738248971224,3.21237184,3279.3,3278.6,0.00457184]
[1738248971428,3.21237184,3279.3,3278.6,0.61466184]
[1738248971734,3.21237184,3279.3,3278.6,0.00457184]
[1738248972127,3.2078,3278.8,3278.6,0.00457184]
[1738248973535,3.81787,3278.8,3278.6,0.00457184]
[1738248973726,3.2078,3278.8,3278.6,0.00457184]
[1738248973934,0.8113,3279.2,3278.6,0.00457184]
[1738248974127,0.00457184,3279.3,3278.8,3.2078]
[1738248974434,0.00457184,3279.3,3279.0,3.63116583]
[1738248974629,0.00457184,3279.3,3279.2,0.60999]
[1738248974939,0.00457184,3279.3,3278.9,0.8137]
[1738248975138,0.00457184,3279.3,3279.0,0.61002]
[1738248975432,0.00457184,3279.3,3278.9,0.8137]
[1738248975634,0.00457184,3279.3,3278.8,3.2078]
[1738248975837,0.00457184,3279.3,3279.2,0.60999]
[1738248976939,0.788,3280.5,3279.3,1.52494]
[1738248977133,4.4138,3280.9,3279.4,4.0202]
[1738248977336,0.60977,3280.4,3279.6,0.6099]
[1738248977531,1.206,3280.9,3279.4,0.8124]
[1738248977837,0.60975,3280.5,3279.9,0.60986]
[1738248978034,0.60975,3280.5,3279.7,3.2078]
[1738248978035,0.60975,3280.5,3279.8,0.60987]
[1738248978238,0.61432184,3280.5,3279.8,0.60987]
[1738248978436,0.00457184,3280.5,3279.7,3.2078]
[1738248978637,3.2078,3280.2,3279.4,4.0202]
[1738248978828,3.2078,3280.2,3279.6,0.60991]
[1738248979028,3.2078,3280.2,3279.4,4.0202]
[1738248979636,0.60982,3280.1,3279.5,0.60993]
[1738248980036,3.2078,3280.2,3279.4,4.0202]
[1738248980438,3.2078,3280.2,3279.5,0.60994]
[1738248980637,3.2078,3280.2,3279.4,4.0202]
[1738248980940,0.00457184,3280.5,3279.4,4.0202]
[1738248980941,0.00457184,3280.5,3280.4,0.60977]
[1738248982335,0.00457184,3280.5,3280.4,5.60977]
[1738248982529,0.60951,3281.8,3281.5,0.60956]
[1738248982735,3.2078,3282.7,3281.7,3.2078]
[1738248983137,0.60942,3282.3,3281.8,0.6095]
[1738248983435,0.6094,3282.4,3281.7,3.2078]
[1738248983642,0.00457184,3282.3,3281.7,3.21237184]
[1738248983832,0.00457184,3282.3,3282.2,0.60943]
[1738248984941,0.00457184,3282.3,3282.2,0.60690261]
[1738248987034,0.00457184,3282.3,3282.1,3.2078]
[1738248987336,0.00457184,3282.3,3282.1,3.81725]
[1738248987735,0.00457184,3282.3,3282.2,0.60943]
[1738248988044,0.00457184,3282.3,3282.1,3.2078]
[1738248988045,0.60943,3282.2,3282.1,3.2078]
[1738248988346,0.00457184,3282.3,3282.2,0.60943]
[1738248989443,0.00457184,3282.3,3281.8,0.793]
[1738248989639,0.60951,3281.8,3281.7,0.00457184]
[1738248989836,3.2078,3281.8,3280.6,0.775]
[1738248990036,3.2078,3281.4,3280.5,3.2078]
[1738248990243,0.60966,3281.0,3280.1,3.63116583]
[1738248990442,0.6097,3280.8,3280.3,0.60978]
[1738248990639,3.2078,3281.0,3280.3,0.60978]
[1738248990839,3.2078,3281.0,3280.5,0.60974]
[1738248991035,0.6097,3280.8,3280.3,0.61434184]
[1738248991241,4.4048,3281.0,3280.3,0.00457184]
[1738248991546,0.6097,3280.8,3280.3,0.00457184]
[1738248991741,3.2078,3281.0,3280.3,0.00457184]
[1738248991942,2.29399,3281.6,3280.3,0.00457184]
[1738248991943,3.2078,3281.1,3280.3,0.00457184]
[1738248992143,3.2078,3281.2,3280.3,0.00457184]
[1738248992346,1.196,3281.5,3280.3,0.00457184]
[1738248992347,1.196,3281.5,3280.6,3.2078]
[1738248992640,4.37556583,3282.2,3280.6,3.2078]
[1738248992641,3.9522,3282.2,3281.4,3.2078]
[1738248992843,3.9522,3282.2,3281.0,3.2078]
[1738248993140,3.2078,3282.2,3282.1,0.60945]
[1738248993538,0.00457184,3282.3,3281.4,3.2078]
[1738248994147,0.00457184,3282.3,3282.0,0.60947]
[1738248994444,0.00457184,3282.3,3282.0,0.60946]
[1738248994835,0.00457184,3282.3,3282.2,0.60943]
[1738248996343,0.00457184,3282.3,3281.9,1.5037]
[1738248996547,0.00457184,3282.3,3282.0,0.60947]
[1738248996850,0.00457184,3282.3,3282.2,0.60943]
[1738248997346,0.00457184,3282.3,3281.9,1.5037]
[1738248997539,0.60944,3282.2,3281.5,0.60956]
[1738248997745,0.00457184,3282.3,3281.4,3.2078]
[1738248998137,0.00457184,3282.3,3281.8,3.2078]
[1738248998545,0.00457184,3282.3,3282.2,3.81723]
[1738249000747,1e-08,3282.3,3282.2,8.81723]
[1738249001151,1e-08,3282.3,3282.2,3.81723]
[1738249001453,1e-08,3282.3,3282.2,8.81723]
[1738249001747,1e-08,3282.3,3282.2,3.81723]
[1738249005250,1e-08,3282.3,3282.2,0.60943]
[1738249005560,1e-08,3282.3,3282.1,0.60944]
[1738249005751,1e-08,3282.3,3282.2,0.60943]
[1738249006452,1e-08,3282.3,3281.9,0.7817]
[1738249006753,1e-08,3282.3,2725.0,0.25]
[1738249006754,0.6095,3281.9,3281.5,0.60955]
[1738249006960,0.60946,3282.1,3281.7,0.60951]
[1738249007253,0.7923,3282.2,3281.2,6.34748367]
[1738249007856,0.60946,3282.1,3281.7,0.60952]
[1738249008363,0.60946,3282.1,3281.2,6.34748367]
[1738249008653,0.7923,3282.2,3281.6,3.2078]
[1738249009163,0.7923,3282.2,3282.1,0.60945]
[1738249010061,0.7923,3282.2,3281.9,0.60948]
[1738249010247,0.7923,3282.2,3281.6,3.2078]
[1738249010455,0.7923,3282.2,3281.8,0.60949]
[1738249010752,0.7923,3282.2,3282.0,0.60947]
[1738249010955,0.7923,3282.2,3281.9,0.60947]
[1738249011153,0.7923,3282.2,3281.6,3.2078]
[1738249011352,1e-08,3282.3,3281.6,6.34748367]
[1738249011553,1e-08,3282.3,3282.2,0.60943]
[1738249012953,1e-08,3282.3,3282.0,3.2078]
[1738249013158,1e-08,3282.3,3282.0,3.81726]
[1738249013355,1e-08,3282.3,3281.5,3.2078]
[1738249013665,3.81726,3282.1,3281.7,0.60953]
[1738249013857,3.2078,3282.1,3281.5,3.2078]
[1738249014061,0.60948,3282.0,3281.6,0.60953]
[1738249014361,0.60952,3281.8,3281.4,0.60957]
[1738249014657,0.60947,3282.0,3281.6,0.60954]
[1738249014956,3.81726,3282.1,3281.7,0.60952]
[1738249015169,3.81726,3282.1,3281.2,3.13968367]
[1738249015170,3.81725,3282.1,3281.8,0.60951]
[1738249015357,3.2078,3282.1,3281.6,0.60953]
[1738249015557,0.60948,3282.0,3281.6,0.60953]
[1738249016061,3.2078,3282.1,3281.3,1.52401]
[1738249016254,3.2078,3282.1,3281.8,0.60951]
[1738249016454,3.2078,3282.1,3281.9,0.60949]
[1738249016765,3.81726,3282.1,3281.7,0.60952]
[1738249017064,3.81726,3282.1,3281.5,3.2078]
[1738249017065,0.60948,3282.0,3281.6,0.60954]
[1738249017253,3.81727,3282.1,3281.7,0.60953]
[1738249017457,3.2078,3282.1,3281.5,3.2078]
[1738249017755,3.2078,3282.1,3281.3,0.60959]
[1738249017960,3.2078,3282.1,3281.3,0.6096]
[1738249017961,0.60954,3281.7,3281.3,0.6096]
[1738249018259,0.60954,3281.7,3281.1,3.2078]
[1738249018461,3.2078,3281.7,3280.7,3.2078]
[1738249018761,3.2078,3281.3,3280.4,3.13968367]
[1738249018965,1.38816,3281.6,3281.2,0.60962]
[1738249019164,0.60957,3281.5,3280.7,3.2078]
[1738249019462,0.6096,3281.4,3281.0,0.60965]
[1738249019758,0.7786,3281.6,3280.7,3.2078]
[1738249019966,0.60957,3281.5,3281.1,0.60963]
[1738249020166,3.2078,3281.2,3280.7,3.2078]
[1738249020660,0.60957,3281.5,3280.7,3.2078]
[1738249020661,0.60957,3281.5,3281.0,0.60964]
[1738249020963,1.38815,3281.6,3281.2,0.60961]
[1738249021173,0.7786,3281.6,3281.2,3.13968367]
[1738249021367,0.7786,3281.6,3281.5,0.60956]
[1738249021769,0.7786,3281.6,3281.2,3.13968367]
[1738249022161,1e-08,3282.3,3282.1,0.60944]
[1738249022463,1e-08,3282.3,3281.9,3.2078]
[1738249022664,1e-08,3282.3,3282.1,0.60945]
[1738249023060,1e-08,3282.3,3281.9,3.2078]
[1738249023557,3.2078,3282.2,3281.6,3.13968367]
[1738249023765,1e-08,3282.3,3282.1,0.60945]
[1738249024265,1e-08,3282.3,3281.6,0.60954]
[1738249024266,0.60948,3282.0,3281.6,0.60954]
[1738249024475,3.04776,3281.6,3280.3,1.84e-06]
[1738249024667,3.81757,3280.4,3280.3,1.84e-06]
[1738249024862,4.3758,3280.4,3279.2,3.68440763]
[1738249025064,3.2078,3279.6,3279.2,0.47660763]
[1738249025361,3.2078,3279.6,3278.6,3.2078]
[1738249025566,3.13968367,3279.4,3278.6,3.2078]
[1738249025769,4.31068367,3279.4,3278.3,0.76229579]
[1738249025965,3.2078,3279.2,3278.3,0.76229579]
[1738249026166,3.2078,3279.2,3278.7,0.61465184]
[1738249026367,3.2078,3279.2,3278.7,0.00457184]
[1738249026567,3.2078,3279.2,3278.8,0.61005]
[1738249026767,3.2078,3279.2,3278.7,0.61464184]
[1738249026970,3.2078,3278.8,3278.7,0.00457184]
[1738249027168,3.2078,3278.8,3278.2,5.46343939]
[1738249027373,6.34748367,3278.3,3278.2,3.01843939]
[1738249027573,7.51748367,3278.3,3277.5,0.47659336]
[1738249027774,0.6102,3278.1,3277.5,0.47659336]
[1738249028274,5.6102,3278.1,3278.0,0.76228724]
[1738249029075,5.0,3278.1,3277.7,0.00457184]
[1738249029274,3.81805,3277.8,3277.7,0.00457184]
[1738249030083,8.81805,3277.8,3277.7,0.00457184]
[1738249030376,0.61029,3277.6,3277.5,0.47659336]
[1738249030579,4.24773756,3277.6,3277.5,0.47659336]
[1738249030973,9.24773756,3277.6,3277.5,0.47659336]
[1738249031769,8.63744756,3277.6,3277.4,0.7624279]
[1738249031970,8.63744756,3277.6,3276.0,3.2078]
[1738249032174,4.73346,3277.8,3275.4,3.9958]
[1738249032175,3.2078,3276.2,3275.4,3.9958]
[1738249032377,3.2078,3276.2,3275.9,0.61059]
[1738249032575,3.2078,3276.2,3275.4,3.9958]
[1738249032576,4.3728,3276.6,3276.2,0.61053]
[1738249033180,4.3728,3276.6,3275.8,3.2078]
[1738249033387,4.3728,3276.6,3276.1,0.61513184]
[1738249033576,4.3728,3276.6,3276.1,0.00457184]
[1738249033771,3.2078,3276.2,3276.1,0.00457184]
[1738249034679,3.81835,3276.2,3276.1,0.00457184]
[1738249036197,8.81835,3276.2,3276.1,0.00457184]
[1738249036376,8.81835,3276.2,3275.7,16.4386487]
[1738249036377,0.61062,3275.8,3275.7,16.4386487]
[1738249036572,7.45586756,3275.8,3275.7,16.4386487]
[1738249036778,13.61886756,3275.8,3275.7,15.9386487]
[1738249037383,13.61886756,3275.8,3275.7,12.8858487]
[1738249037580,13.61886756,3275.8,3275.7,10.86964884]
[1738249037782,13.61886756,3275.8,3275.7,9.33114884]
[1738249038081,13.62286756,3275.8,3275.7,9.33114884]
[1738249038484,13.62186756,3275.8,3275.7,9.33114884]
[1738249038785,13.62186756,3275.8,3275.7,8.83164884]
[1738249038983,0.61068,3275.5,3275.4,0.00178533]
[1738249039383,5.61068,3275.5,3275.4,0.00178533]
[1738249039686,0.61079,3275.0,3274.1,0.61093]
[1738249039886,3.2078,3274.4,3274.3,3.0528]
[1738249040083,3.2078,3274.4,3274.0,0.7713]
[1738249040288,3.2078,3274.4,3274.3,3.0528]
[1738249040591,3.81868,3274.4,3274.3,3.0528]
[1738249040785,0.61092,3274.2,3273.4,0.61107]
[1738249040981,6.84524756,3274.4,3274.0,3.0528]
[1738249041181,6.84524756,3274.4,3273.4,0.61107]
[1738249041182,0.61099,3273.9,3273.6,3.0528]
[1738249041484,3.2078,3273.7,3273.6,3.0528]
[1738249041684,3.2078,3273.7,3273.3,0.7909]
[1738249041884,3.63744756,3273.9,3273.6,3.0528]
[1738249042075,3.2078,3274.5,3273.8,3.0528]
[1738249042280,3.2078,3274.5,3274.4,0.61088]
[1738249042483,3.2078,3274.5,3274.4,3.0528]
[1738249042982,3.2078,3274.5,3273.5,3.2078]
[1738249043187,3.2078,3274.5,3274.4,3.0528]
[1738249043391,3.2078,3274.5,3274.4,3.66368]
[1738249043790,0.0045791,3274.7,3274.6,0.61085]
[1738249043990,0.0045791,3274.7,3274.6,3.66365]
[1738249044488,0.0045791,3274.7,3274.6,6.87145]
[1738249044795,0.0045791,3274.7,3274.6,6.2606]
[1738249045687,0.0045791,3274.7,3274.6,3.0528]
[1738249046781,0.0045791,3274.7,3274.1,0.61093]
[1738249046980,3.2078,3274.5,3274.4,3.0528]
[1738249047891,3.81868,3274.5,3274.0,3.2078]
[1738249048087,0.6109,3274.4,3274.0,6.2606]
[1738249048287,3.2078,3274.5,3274.2,3.0528]
[1738249048480,3.2078,3274.5,3274.4,3.0528]
[1738249048686,3.2078,3274.5,3274.4,3.66368]
[1738249048887,3.2078,3274.5,3274.4,3.0528]
[1738249049092,3.2078,3274.5,3274.0,3.2078]
[1738249049292,3.81867,3274.5,3274.2,3.0528]
[1738249049491,0.6109,3274.4,3274.2,3.0528]
[1738249049895,3.81868,3274.5,3274.2,3.0528]
[1738249050385,3.2078,3274.5,3274.2,3.0528]
[1738249050589,3.2078,3274.5,3274.4,3.0528]
[1738249051194,3.81867,3274.5,3274.4,3.0528]
[1738249051386,0.61088,3274.4,3273.5,3.961]
[1738249051582,3.63744756,3274.3,3274.0,3.0528]
[1738249051792,3.63744756,3274.3,3274.1,3.0528]
[1738249052192,3.63744756,3274.3,3274.2,3.0528]
[1738249052689,3.63744756,3274.3,3273.5,3.961]
[1738249052690,3.63744756,3274.3,3273.7,0.61101]
[1738249052891,3.63744756,3274.3,3274.1,3.0528]
[1738249053698,3.63744756,3274.3,3273.5,3.961]
[1738249053892,3.2078,3274.1,3273.9,3.0528]
[1738249054488,3.2078,3274.1,3273.5,0.7532]
[1738249054793,0.61097,3274.0,3273.5,3.806]
[1738249054987,3.2078,3274.1,3273.5,0.7532]
[1738249055189,0.61098,3273.9,3273.8,3.0528]
[1738249055595,3.2078,3274.1,3273.8,3.0528]
[1738249055992,4.3748,3274.1,3274.0,3.0528]
[1738249056301,3.2078,3274.1,3274.0,3.0528]
[1738249057184,3.2078,3274.1,3273.8,0.61099]
[1738249057394,3.2078,3274.1,3273.9,3.0528]
[1738249057903,3.2078,3274.1,3274.0,3.0528]
[1738249058291,3.2078,3274.1,3273.7,0.611]
[1738249058488,3.15619642,3274.0,3273.9,3.0528]
[1738249058900,3.0532,3275.8,3273.9,3.0528]
[1738249058901,3.15619642,3274.4,3273.9,6.2606]
[1738249059194,3.15619642,3274.4,3273.9,3.2078]
[1738249059499,0.6109,3274.3,3274.2,3.0528]
[1738249059698,0.6109,3274.3,3273.5,3.961]
[1738249059699,6.36399642,3274.3,3273.9,3.0528]
[1738249059898,0.61095,3274.1,3273.9,3.0528]
[1738249060401,6.36399642,3274.3,3273.9,3.0528]
[1738249060603,0.61093,3274.2,3273.9,3.0528]
[1738249060999,6.36399642,3274.3,3273.9,3.0528]
[1738249061306,0.61095,3274.1,3273.8,0.00456157]
[1738249061505,3.2078,3273.9,3273.8,0.00456157]
[1738249061999,3.2078,3273.9,3273.8,3.05736157]
[1738249062196,3.2078,3273.9,3273.8,3.66836157]
[1738249062699,3.2078,3273.9,3273.8,3.05736157]
[1738249063006,4.31919642,3274.3,3274.0,0.61095]
[1738249063196,3.15619642,3274.3,3274.2,3.0528]
[1738249063400,3.16077552,3274.7,3274.2,1.82411289]
[1738249063599,3.16077552,3274.7,3274.6,1.82411289]
[1738249063902,3.16077552,3274.7,3274.3,1.5985]
[1738249064102,3.16077552,3274.7,3274.6,1.82411289]
[1738249064494,3.77160552,3274.7,3274.6,1.82411289]
[1738249065405,3.77160552,3274.7,3274.3,1.5985]
[1738249065601,0.61085,3274.6,3274.5,1.82411289]
[1738249065796,3.81865,3274.6,3274.5,1.82411289]
[1738249066496,3.2078,3274.6,3273.8,0.61555157]
[1738249066698,6.36399642,3274.2,3273.9,0.61097]
[1738249066899,3.2078,3274.2,3274.1,1.82411289]
[1738249069100,6.36399642,3274.2,3274.1,1.82411289]
[1738249069496,0.61096,3274.0,3273.8,0.00456157]
[1738249069700,1.76595,3274.1,3274.0,1.82411289]
[1738249069900,1.155,3274.1,3273.8,0.00456157]
[1738249070106,1.155,3274.1,3274.0,1.82411289]
[1738249070602,1.76594,3274.1,3274.0,1.82411289]
[1738249070905,1.155,3274.1,3273.8,0.00456157]
[1738249071103,0.61096,3274.0,3273.8,1.82411289]
[1738249071316,3.15619642,3273.9,3273.0,1.4958]
[1738249071606,3.15619642,3273.2,3273.1,0.61113]
[1738249071801,3.15619642,3273.2,3273.1,1.38733]
[1738249072302,0.61113,3273.1,3273.0,0.7424]
[1738249072503,3.15619642,3273.2,3272.6,3.2078]
[1738249072710,3.15619642,3272.7,3272.4,0.7762]
[1738249073508,0.61126,3272.4,3272.1,0.745]
[1738249073696,3.15619642,3272.2,3272.1,0.745]
[1738249073900,3.15619642,3272.2,3272.0,3.2078]
[1738249074101,3.15619642,3272.2,3270.5,0.35631565]
[1738249074102,4.3598,3272.1,3271.4,3.2078]
[1738249074406,3.15619642,3271.7,3271.4,3.2078]
[1738249074607,3.2078,3271.6,3271.2,0.745]
[1738249074795,3.15619642,3271.3,3271.2,0.745]
[1738249075000,3.2078,3271.6,3271.2,0.745]
[1738249075197,3.2078,3271.6,3271.5,0.61143]
[1738249075804,3.15619642,3271.7,3271.2,3.9528]
[1738249076006,3.15619642,3271.7,3271.6,0.61141]
[1738249076203,3.15619642,3271.7,3271.5,0.61142]
[1738249076404,3.15619642,3271.7,3271.2,3.9528]
[1738249076800,3.15619642,3271.7,3271.2,0.745]
[1738249077002,3.15619642,3271.3,3271.2,0.745]
[1738249077602,3.15619642,3271.3,3271.1,0.7714]
[1738249077803,3.15619642,3271.3,3270.8,3.2078]
[1738249078004,3.15619642,3271.3,3270.8,3.81935]
[1738249078203,3.2078,3271.5,3270.8,3.81935]
[1738249078204,3.2078,3271.5,3271.3,96.84380358]
[1738249078407,3.76763642,3271.4,3271.3,96.84380358]
[1738249078605,3.15619642,3271.4,3271.3,96.84380358]
[1738249079415,3.2078,3271.5,3271.3,97.45525358]
[1738249079713,3.15619642,3271.4,3271.3,96.84380358]
[1738249079911,3.2078,3271.5,3271.3,97.45525358]
[1738249080110,3.2078,3271.5,3271.3,96.84380358]
[1738249080305,3.2078,3271.5,3271.4,0.61144]
[1738249080701,3.2078,3271.5,3271.3,96.84380358]
[1738249081510,3.76763642,3271.4,3271.3,96.84380358]
[1738249081712,3.15619642,3271.4,3271.3,96.84380358]
[1738249081920,3.2078,3271.5,3271.3,97.45525358]
[1738249082405,3.2078,3271.5,3271.3,96.84380358]
[1738249082813,3.2078,3271.5,3271.3,97.45526358]
[1738249083118,3.2078,3271.5,3271.3,96.84380358]
[1738249084309,0.61144,3271.4,3271.3,96.84380358]
[1738249084517,0.61144,3271.4,3271.3,95.74449582]
[1738249084907,0.61144,3271.4,3271.3,94.85741861]
[1738249085107,0.61144,3271.4,3271.3,94.0066002]
[1738249085310,0.61144,3271.4,3271.3,76.14529549]
[1738249085311,5.61144,3271.4,3271.3,76.14529549]
[1738249085607,10.70000328,3271.4,3271.3,31.7865499]
[1738249085812,10.70000328,3271.4,3271.3,26.58693636]
[1738249086007,10.70000328,3271.4,3271.3,13.30847144]
[1738249086314,2.48278779,3271.1,3269.3,2.2583]
[1738249086512,3.81953,3269.9,3269.7,3.0568]
[1738249086708,1.76375,3269.8,3269.5,3.0568]
[1738249087016,1.152,3269.8,3268.6,3.2078]
[1738249087212,3.2078,3269.2,3268.6,3.2078]
[1738249087513,3.2078,3269.2,3269.1,2.81679781]
[1738249087717,3.2078,3269.6,3269.0,2.81679781]
[1738249087909,3.81959,3269.6,3269.0,2.81679781]
[1738249088110,3.2078,3269.6,3269.2,0.61184]
[1738249088306,3.2078,3269.6,3269.5,2.81679781]
[1738249088816,3.81958,3269.6,3268.6,3.2078]
[1738249089015,0.6118,3269.5,3269.2,2.81679781]
[1738249089213,0.61183,3269.4,3269.1,2.81679781]
[1738249089421,3.2078,3269.6,3269.1,2.81679781]
[1738249089613,3.2078,3269.6,3269.1,3.42866781]
[1738249089812,3.2078,3269.6,3269.5,2.81679781]
[1738249090125,4.3628,3269.6,3269.3,2.81679781]
[1738249090514,0.61181,3269.5,3269.3,2.81679781]
[1738249090819,4.3628,3269.6,3269.3,2.81679781]
[1738249091112,1.155,3269.5,3269.3,2.81679781]
[1738249091320,1.155,3269.5,3268.9,0.61191]
[1738249091510,1.76681,3269.5,3269.1,2.81679781]
[1738249091712,1.155,3269.5,3269.1,2.81679781]
[1738249091911,3.81966,3269.2,3269.1,2.81679781]
[1738249092114,3.2078,3269.2,3268.6,0.61196]
[1738249092421,3.81966,3269.2,3268.7,2.81679781]
[1738249092614,3.2078,3269.2,3268.7,2.81679781]
[1738249092815,0.61188,3269.1,3268.7,2.81679781]
[1738249093120,3.2078,3268.8,3268.2,2.93794]
[1738249093316,3.2078,3268.8,3268.4,2.81679781]
[1738249093625,3.2078,3268.8,3268.6,2.81679781]
[1738249093824,3.2078,3268.8,3268.7,2.81679781]